[Event "NJSK 2024 B"]
[Site "Groningen, Netherlands"]
[Date "2024.04.30"]
[Round "4.8"]
[White "Lopes, Samuel"]
[Black "Heus, Daan"]
[Result "0-1"]
[TimeControl "90min/40moves + 30min + 30sec/move"]
[WhiteElo "1906"]
[BlackElo "1921"]

1. e4 {[%clk 01:30:35]} {[%emt 00:00:24]} e5 {[%clk 01:30:56]} {[%emt
00:00:05]} 2. Nf3 {[%clk 01:30:53]} {[%emt 00:00:11]} Nc6 {[%clk 01:31:20]}
{[%emt 00:00:06]} 3. Bc4 {[%clk 01:31:11]} {[%emt 00:00:12]} Bc5 {[%clk
01:31:32]} {[%emt 00:00:18]} 4. d3 {[%clk 01:31:30]} {[%emt 00:00:11]} Nf6
{[%clk 01:31:50]} {[%emt 00:00:12]} 5. Nc3 {[%clk 01:31:46]} {[%emt 00:00:13]}
h6 {[%clk 01:30:58]} {[%emt 00:01:22]} 6. a3 {[%clk 01:31:59]} {[%emt
00:00:17]} a5 {[%clk 01:30:52]} {[%emt 00:00:37]} 7. h3 {[%clk 01:31:36]}
{[%emt 00:00:51]} d6 {[%clk 01:30:40]} {[%emt 00:00:43]} 8. Nd5 {[%clk
01:28:14]} {[%emt 00:03:53]} Be6 {[%clk 01:26:10]} {[%emt 00:05:00]} 9. Nxf6+
{[%clk 01:23:48]} {[%emt 00:04:55]} Qxf6 {[%clk 01:26:07]} {[%emt 00:00:33]} 10.
Bb5 {[%clk 01:23:18]} {[%emt 00:01:00]} O-O {[%clk 01:25:05]} {[%emt 00:01:32]}
11. Bxc6 {[%clk 01:18:09]} {[%emt 00:05:39]} bxc6 {[%clk 01:25:21]} {[%emt
00:00:14]} 12. g4 {[%clk 01:16:17]} {[%emt 00:02:22]} g5 {[%clk 01:18:17]}
{[%emt 00:07:34]} 13. Rg1 {[%clk 01:07:47]} {[%emt 00:09:00]} Qg7 {[%clk
01:13:08]} {[%emt 00:05:39]} 14. b3 {[%clk 01:03:10]} {[%emt 00:05:07]} d5
{[%clk 01:06:38]} {[%emt 00:07:01]} 15. Qe2 {[%clk 00:58:40]} {[%emt 00:04:59]}
f6 {[%clk 00:59:35]} {[%emt 00:07:34]} 16. Be3 {[%clk 00:52:52]} {[%emt
00:06:18]} Qe7 {[%clk 00:51:19]} {[%emt 00:08:46]} 17. Bc1 {[%clk 00:42:06]}
{[%emt 00:11:16]} Rab8 {[%clk 00:43:05]} {[%emt 00:08:43]} 18. Nh2 {[%clk
00:37:57]} {[%emt 00:04:39]} Bd4 {[%clk 00:39:58]} {[%emt 00:03:37]} 19. Rb1
{[%clk 00:33:43]} {[%emt 00:04:44]} Bc3+ {[%clk 00:36:22]} {[%emt 00:04:06]} 20.
Kf1 {[%clk 00:27:20]} {[%emt 00:06:53]} a4 {[%clk 00:33:57]} {[%emt 00:02:55]}
21. Rg3 {[%clk 00:26:33]} {[%emt 00:01:17]} d4 {[%clk 00:32:02]} {[%emt
00:02:25]} 22. Qd1 {[%clk 00:25:31]} {[%emt 00:01:33]} Qf7 {[%clk 00:28:21]}
{[%emt 00:04:11]} 23. b4 {[%clk 00:17:31]} {[%emt 00:08:30]} Ba2 {[%clk
00:27:14]} {[%emt 00:01:37]} 24. Rb2 {[%clk 00:17:16]} {[%emt 00:00:44]} c5
{[%clk 00:25:21]} {[%emt 00:02:23]} 25. Qf3 {[%clk 00:14:05]} {[%emt 00:03:41]}
Bxb2 {[%clk 00:24:35]} {[%emt 00:01:17]} 26. Bxb2 {[%clk 00:14:34]} cxb4 {[%clk
00:24:15]} {[%emt 00:00:49]} 27. axb4 {[%clk 00:14:38]} {[%emt 00:00:26]} Rxb4
{[%clk 00:22:59]} {[%emt 00:01:46]} 28. Ba3 {[%clk 00:15:06]} {[%emt 00:00:03]}
Rb1+ {[%clk 00:23:19]} {[%emt 00:00:09]} 29. Kg2 {[%clk 00:15:35]} Rc8 {[%clk
00:22:01]} {[%emt 00:01:48]} 30. h4 {[%clk 00:15:09]} {[%emt 00:00:56]} Be6
{[%clk 00:20:16]} {[%emt 00:02:16]} 31. Rh3 {[%clk 00:13:56]} {[%emt 00:01:42]}
Kg7 {[%clk 00:17:12]} {[%emt 00:03:35]} 32. hxg5 {[%clk 00:12:15]} {[%emt
00:02:11]} hxg5 {[%clk 00:15:25]} {[%emt 00:02:17]} 33. Nf1 {[%clk 00:11:20]}
{[%emt 00:01:25]} Rh8 {[%clk 00:12:20]} {[%emt 00:03:35]} 34. Rxh8 {[%clk
00:11:22]} {[%emt 00:00:27]} Kxh8 {[%clk 00:12:41]} {[%emt 00:00:09]} 35. Qh3+
{[%clk 00:10:53]} {[%emt 00:01:00]} Qh7 {[%clk 00:12:16]} {[%emt 00:00:54]} 36.
Qf3 {[%clk 00:11:03]} {[%emt 00:00:20]} Qg6 {[%clk 00:10:26]} {[%emt 00:02:20]}
37. Ng3 {[%clk 00:11:06]} {[%emt 00:00:28]} Kg7 {[%clk 00:09:41]} {[%emt
00:01:15]} 38. Bc5 {[%clk 00:07:48]} {[%emt 00:03:47]} Ra1 {[%clk 00:07:54]}
{[%emt 00:02:17]} 39. Be7 {[%clk 00:04:19]} {[%emt 00:04:00]} Kf7 {[%clk
00:07:04]} {[%emt 00:01:19]} 40. Bd8 {[%clk 00:03:31]} {[%emt 00:01:18]} a3
{[%clk 00:06:52]} {[%emt 00:00:43]} 41. Bxc7 {[%clk 00:03:43]} {[%emt
00:00:18]} Ke7 {[%clk 00:04:41]} {[%emt 00:02:40]} 42. Nh5 {[%clk 00:01:19]}
{[%emt 00:02:54]} a2 {[%clk 00:03:40]} {[%emt 00:01:32]} 43. Nxf6 {[%clk
00:01:17]} {[%emt 00:00:31]} Rb1 {[%clk 00:01:11]} {[%emt 00:02:59]} 44. Bxe5
{[%clk 00:25:26]} {[%emt 00:06:21]} a1=Q {[%clk 00:30:59]} {[%emt 00:00:43]} 45.
Bh2 {[%clk 00:24:41]} {[%emt 00:01:15]} Qxf6 {[%clk 00:30:34]} {[%emt
00:00:55]} 46. Qh3 {[%clk 00:23:21]} {[%emt 00:01:49]} Rh1 {[%clk 00:29:13]}
{[%emt 00:01:51]} 47. Qh7+ {[%clk 00:22:07]} {[%emt 00:01:44]} Bf7 {[%clk
00:29:15]} {[%emt 00:00:29]} 48. Bd6+ {[%clk 00:21:49]} {[%emt 00:00:47]} Qxd6
{[%clk 00:28:52]} {[%emt 00:00:54]} 49. Qxh1 {[%clk 00:21:51]} {[%emt
00:00:27]} Qxh1+ {[%clk 00:29:11]} {[%emt 00:00:10]} 50. Kxh1 {[%clk 00:22:16]}
{[%emt 00:00:06]} Qf4 {[%clk 00:29:22]} {[%emt 00:00:20]} 51. e5 {[%clk
00:22:26]} {[%emt 00:00:19]} Bd5+ {[%clk 00:29:36]} {[%emt 00:00:16]} 52. Kg1
{[%clk 00:22:50]} {[%emt 00:00:06]} Qxg4+ {[%clk 00:29:35]} {[%emt 00:00:32]}
53. Kf1 {[%clk 00:22:54]} {[%emt 00:00:25]} Qd1# {[%clk 00:29:23]} {[%emt
00:00:10]} 0-1

[Event "NJSK 2024 B"]
[Site "Groningen, Netherlands"]
[Date "2024.05.01"]
[Round "5.1"]
[White "Smeets, Kobe"]
[Black "Arnold, Rhys"]
[Result "1-0"]
[TimeControl "90min/40moves + 30min + 30sec/move"]
[WhiteElo "2274"]
[BlackElo "2185"]

1. e4 {[%clk 01:30:58]} e5 {[%clk 01:30:19]} {[%emt 00:00:41]} 2. Nf3 {[%clk
01:31:21]} {[%emt 00:00:07]} Nc6 {[%clk 01:30:45]} {[%emt 00:00:05]} 3. Bb5
{[%clk 01:31:45]} {[%emt 00:00:06]} a6 {[%clk 01:31:14]} {[%emt 00:00:02]} 4.
Ba4 {[%clk 01:32:08]} {[%emt 00:00:07]} Nf6 {[%clk 01:31:16]} {[%emt 00:00:27]}
5. O-O {[%clk 01:32:29]} {[%emt 00:00:10]} Be7 {[%clk 01:31:35]} {[%emt
00:00:11]} 6. Re1 {[%clk 01:32:24]} {[%emt 00:00:34]} b5 {[%clk 01:31:56]}
{[%emt 00:00:08]} 7. Bb3 {[%clk 01:32:50]} {[%emt 00:00:05]} d6 {[%clk
01:32:23]} {[%emt 00:00:03]} 8. a4 {[%clk 01:33:14]} {[%emt 00:00:06]} Bd7
{[%clk 01:31:04]} {[%emt 00:01:49]} 9. c3 {[%clk 01:33:20]} {[%emt 00:00:24]}
O-O {[%clk 01:30:11]} {[%emt 00:01:23]} 10. d4 {[%clk 01:32:03]} {[%emt
00:01:47]} h6 {[%clk 01:25:34]} {[%emt 00:05:07]} 11. Nbd2 {[%clk 01:30:12]}
{[%emt 00:02:21]} exd4 {[%clk 01:18:37]} {[%emt 00:07:27]} 12. cxd4 {[%clk
01:30:26]} {[%emt 00:00:16]} Nb4 {[%clk 01:18:59]} {[%emt 00:00:09]} 13. Nf1
{[%clk 00:56:10]} {[%emt 00:34:46]} d5 {[%clk 01:13:50]} {[%emt 00:05:39]} 14.
e5 {[%clk 00:56:14]} {[%emt 00:00:25]} Ne4 {[%clk 01:13:25]} {[%emt 00:00:55]}
15. Ng3 {[%clk 00:53:17]} {[%emt 00:03:27]} Nxg3 {[%clk 01:11:10]} {[%emt
00:02:45]} 16. hxg3 {[%clk 00:53:05]} {[%emt 00:00:42]} Bg4 {[%clk 01:01:19]}
{[%emt 00:10:21]} 17. Be3 {[%clk 00:48:15]} {[%emt 00:05:20]} Qd7 {[%clk
00:56:56]} {[%emt 00:04:53]} 18. Qd2 {[%clk 00:45:46]} {[%emt 00:02:59]} Bf5
{[%clk 00:54:41]} {[%emt 00:02:45]} 19. Rec1 {[%clk 00:41:47]} {[%emt
00:04:29]} Nd3 {[%clk 00:50:48]} {[%emt 00:04:24]} 20. Rd1 {[%clk 00:42:00]}
{[%emt 00:00:16]} Nb4 {[%clk 00:51:15]} {[%emt 00:00:03]} 21. Rdc1 {[%clk
00:39:03]} {[%emt 00:03:27]} Nd3 {[%clk 00:51:20]} {[%emt 00:00:25]} 22. Rc3
{[%clk 00:26:39]} {[%emt 00:12:55]} Nb4 {[%clk 00:46:42]} {[%emt 00:05:08]} 23.
Bf4 {[%clk 00:26:47]} {[%emt 00:00:23]} Rfc8 {[%clk 00:42:27]} {[%emt
00:04:45]} 24. Qd1 {[%clk 00:26:00]} {[%emt 00:01:17]} Qd8 {[%clk 00:37:34]}
{[%emt 00:05:23]} 25. Be3 {[%clk 00:23:07]} {[%emt 00:03:23]} Bh7 {[%clk
00:36:08]} {[%emt 00:01:56]} 26. g4 {[%clk 00:22:44]} {[%emt 00:00:54]} c6
{[%clk 00:29:19]} {[%emt 00:07:16]} 27. Qd2 {[%clk 00:20:09]} {[%emt 00:03:07]}
Qf8 {[%clk 00:26:22]} {[%emt 00:03:28]} 28. Ne1 {[%clk 00:15:03]} {[%emt
00:05:37]} f5 {[%clk 00:21:13]} {[%emt 00:05:39]} 29. g5 {[%clk 00:13:31]}
{[%emt 00:02:01]} hxg5 {[%clk 00:15:53]} {[%emt 00:05:49]} 30. Bxg5 {[%clk
00:13:55]} {[%emt 00:00:07]} Qd8 {[%clk 00:15:34]} {[%emt 00:00:49]} 31. Bxe7
{[%clk 00:13:38]} {[%emt 00:00:48]} Qxe7 {[%clk 00:15:59]} {[%emt 00:00:04]} 32.
Rh3 {[%clk 00:13:25]} {[%emt 00:00:43]} Rab8 {[%clk 00:15:02]} {[%emt
00:01:27]} 33. Nf3 {[%clk 00:12:38]} {[%emt 00:01:17]} f4 {[%clk 00:12:47]}
{[%emt 00:02:45]} 34. Qxf4 {[%clk 00:12:57]} {[%emt 00:00:12]} Rf8 {[%clk
00:13:12]} {[%emt 00:00:05]} 35. Qg3 {[%clk 00:12:59]} {[%emt 00:00:29]} Bf5
{[%clk 00:06:47]} {[%emt 00:06:54]} 36. Rh5 {[%clk 00:12:28]} {[%emt 00:01:02]}
bxa4 {[%clk 00:05:46]} {[%emt 00:01:31]} 37. Bxa4 {[%clk 00:09:55]} {[%emt
00:03:03]} g6 {[%clk 00:05:36]} {[%emt 00:00:40]} 38. Rxf5 {[%clk 00:10:16]}
{[%emt 00:00:09]} Rxf5 {[%clk 00:05:14]} {[%emt 00:00:52]} 39. Qxg6+ {[%clk
00:10:40]} {[%emt 00:00:06]} Qg7 {[%clk 00:05:37]} {[%emt 00:00:07]} 40. Qxf5
{[%clk 00:10:54]} {[%emt 00:00:17]} Rf8 {[%clk 00:05:47]} {[%emt 00:00:19]} 41.
Qe6+ {[%clk 00:11:05]} {[%emt 00:00:20]} Kh8 {[%clk 00:05:59]} {[%emt
00:00:18]} 42. Ra3 {[%clk 00:10:34]} {[%emt 00:01:00]} 1-0

[Event "NJSK 2024 B"]
[Site "Groningen, Netherlands"]
[Date "2024.05.01"]
[Round "5.2"]
[White "Van Batenburg, Mees"]
[Black "Van Arendonk, Polle"]
[Result "1-0"]
[TimeControl "90min/40moves + 30min + 30sec/move"]
[WhiteElo "2110"]
[BlackElo "1914"]

1. d4 {[%clk 01:30:36]} {[%emt 00:00:24]} d5 {[%clk 01:30:55]} {[%emt
00:00:06]} 2. Bf4 {[%clk 01:30:37]} {[%emt 00:00:28]} Nf6 {[%clk 01:31:08]}
{[%emt 00:00:18]} 3. e3 {[%clk 01:30:31]} {[%emt 00:00:35]} c6 {[%clk
01:30:36]} {[%emt 00:01:03]} 4. Nc3 {[%clk 01:30:31]} {[%emt 00:00:29]} Bf5
{[%clk 01:30:29]} {[%emt 00:00:37]} 5. f3 {[%clk 01:30:55]} {[%emt 00:00:05]}
h5 {[%clk 01:30:53]} {[%emt 00:00:07]} 6. Bd3 {[%clk 01:31:05]} {[%emt
00:00:20]} Bxd3 {[%clk 01:31:14]} {[%emt 00:00:10]} 7. Qxd3 {[%clk 01:31:20]}
{[%emt 00:00:14]} e6 {[%clk 01:31:30]} {[%emt 00:00:14]} 8. Nge2 {[%clk
01:29:13]} {[%emt 00:02:35]} Nbd7 {[%clk 01:31:16]} {[%emt 00:00:45]} 9. O-O
{[%clk 01:21:52]} {[%emt 00:07:51]} h4 {[%clk 01:13:57]} {[%emt 00:17:50]} 10.
e4 {[%clk 01:15:06]} {[%emt 00:07:15]} Nh5 {[%clk 01:09:04]} {[%emt 00:05:23]}
11. Rfe1 {[%clk 01:06:31]} {[%emt 00:09:05]} Nxf4 {[%clk 00:59:59]} {[%emt
00:09:35]} 12. Nxf4 {[%clk 01:06:59]} {[%emt 00:00:02]} Qf6 {[%clk 00:48:22]}
{[%emt 00:12:07]} 13. Nxe6 {[%clk 00:45:11]} {[%emt 00:22:18]} fxe6 {[%clk
00:41:02]} {[%emt 00:07:50]} 14. exd5 {[%clk 00:45:35]} {[%emt 00:00:07]} O-O-O
{[%clk 00:31:32]} {[%emt 00:10:00]} 15. Rxe6 {[%clk 00:43:44]} {[%emt
00:02:20]} Qf7 {[%clk 00:26:15]} {[%emt 00:05:47]} 16. Rae1 {[%clk 00:40:49]}
{[%emt 00:03:24]} cxd5 {[%clk 00:22:24]} {[%emt 00:04:22]} 17. Nb5 {[%clk
00:32:01]} {[%emt 00:09:17]} Kb8 {[%clk 00:18:02]} {[%emt 00:04:52]} 18. Qc3
{[%clk 00:30:00]} {[%emt 00:02:31]} Rc8 {[%clk 00:18:14]} {[%emt 00:00:19]} 19.
Qxc8+ {[%clk 00:30:20]} {[%emt 00:00:10]} Kxc8 {[%clk 00:18:38]} {[%emt
00:00:06]} 20. Re8+ {[%clk 00:30:48]} {[%emt 00:00:02]} Qxe8 {[%clk 00:18:57]}
{[%emt 00:00:12]} 21. Rxe8# {[%clk 00:30:44]} {[%emt 00:00:03]} 1-0

[Event "NJSK 2024 B"]
[Site "Groningen, Netherlands"]
[Date "2024.05.01"]
[Round "5.3"]
[White "Wink, Luka"]
[Black "Madularea, David"]
[Result "0-1"]
[TimeControl "90min/40moves + 30min + 30sec/move"]
[WhiteElo "2082"]
[BlackElo "2022"]

1. e4 {[%clk 01:30:39]} {[%emt 00:00:20]} c5 {[%clk 01:30:30]} {[%emt
00:00:30]} 2. Nf3 {[%clk 01:31:05]} {[%emt 00:00:03]} d6 {[%clk 01:30:40]}
{[%emt 00:00:20]} 3. d4 {[%clk 01:31:25]} {[%emt 00:00:10]} cxd4 {[%clk
01:31:06]} {[%emt 00:00:04]} 4. Nxd4 {[%clk 01:31:51]} {[%emt 00:00:04]} Nf6
{[%clk 01:31:31]} {[%emt 00:00:05]} 5. Nc3 {[%clk 01:32:16]} {[%emt 00:00:05]}
a6 {[%clk 01:31:49]} {[%emt 00:00:12]} 6. h3 {[%clk 01:32:23]} {[%emt
00:00:22]} e5 {[%clk 01:31:39]} {[%emt 00:00:40]} 7. Nf3 {[%clk 01:32:46]}
{[%emt 00:00:07]} Be7 {[%clk 01:32:05]} {[%emt 00:00:04]} 8. g4 {[%clk
01:32:52]} {[%emt 00:00:24]} b5 {[%clk 01:32:29]} {[%emt 00:00:05]} 9. g5
{[%clk 01:27:39]} {[%emt 00:05:44]} Nfd7 {[%clk 01:32:44]} {[%emt 00:00:16]} 10.
Be3 {[%clk 01:22:04]} {[%emt 00:06:05]} Nb6 {[%clk 01:33:01]} {[%emt 00:00:13]}
11. Nd5 {[%clk 01:18:17]} {[%emt 00:04:17]} N8d7 {[%clk 01:32:56]} {[%emt
00:00:35]} 12. c3 {[%clk 01:15:08]} {[%emt 00:03:39]} Bb7 {[%clk 01:30:19]}
{[%emt 00:03:06]} 13. Nxb6 {[%clk 01:14:54]} {[%emt 00:00:45]} Nxb6 {[%clk
01:30:41]} {[%emt 00:00:08]} 14. Qc2 {[%clk 01:14:09]} {[%emt 00:01:15]} Rc8
{[%clk 01:27:42]} {[%emt 00:03:28]} 15. h4 {[%clk 01:10:32]} {[%emt 00:04:07]}
Nc4 {[%clk 01:05:58]} {[%emt 00:22:15]} 16. Bxc4 {[%clk 01:10:30]} {[%emt
00:00:32]} Rxc4 {[%clk 01:06:20]} {[%emt 00:00:08]} 17. Nd2 {[%clk 01:10:45]}
{[%emt 00:00:15]} Rc8 {[%clk 01:06:40]} {[%emt 00:00:09]} 18. O-O-O {[%clk
01:00:51]} {[%emt 00:10:24]} O-O {[%clk 00:58:28]} {[%emt 00:08:41]} 19. Qb3
{[%clk 00:54:42]} {[%emt 00:06:40]} d5 {[%clk 00:50:19]} {[%emt 00:08:39]} 20.
Nf3 {[%clk 00:52:51]} {[%emt 00:02:21]} Qa5 {[%clk 00:46:43]} {[%emt 00:04:06]}
21. Nxe5 {[%clk 00:45:52]} {[%emt 00:07:29]} b4 {[%clk 00:45:13]} {[%emt
00:01:59]} 22. Nd7 {[%clk 00:37:32]} {[%emt 00:08:50]} d4 {[%clk 00:34:17]}
{[%emt 00:11:26]} 23. Rxd4 {[%clk 00:25:07]} {[%emt 00:12:55]} Rfd8 {[%clk
00:34:34]} {[%emt 00:00:13]} 24. Rhd1 {[%clk 00:23:22]} {[%emt 00:02:15]} bxc3
{[%clk 00:32:27]} {[%emt 00:02:38]} 25. Ra4 {[%clk 00:20:57]} {[%emt 00:02:55]}
Qc7 {[%clk 00:28:48]} {[%emt 00:04:08]} 26. Bb6 {[%clk 00:18:54]} {[%emt
00:02:33]} Qh2 {[%clk 00:18:39]} {[%emt 00:10:39]} 27. Be3 {[%clk 00:14:20]}
{[%emt 00:05:05]} c2 {[%clk 00:17:51]} {[%emt 00:01:17]} 28. Qxb7 {[%clk
00:12:23]} {[%emt 00:02:27]} cxd1=Q+ {[%clk 00:18:12]} {[%emt 00:00:09]} 29.
Kxd1 {[%clk 00:12:48]} {[%emt 00:00:05]} Rc7 {[%clk 00:18:16]} {[%emt
00:00:26]} 0-1

[Event "NJSK 2024 B"]
[Site "Groningen, Netherlands"]
[Date "2024.05.01"]
[Round "5.4"]
[White "Zhu, Chenwu"]
[Black "Kumar, Prajit Sai"]
[Result "1-0"]
[TimeControl "90min/40moves + 30min + 30sec/move"]
[WhiteElo "2020"]
[BlackElo "2211"]

1. e4 {[%clk 01:30:57]} {[%emt 00:00:02]} c6 {[%clk 01:30:57]} {[%emt
00:00:03]} 2. d4 {[%clk 01:31:22]} {[%emt 00:00:05]} d5 {[%clk 01:31:21]}
{[%emt 00:00:06]} 3. Nc3 {[%clk 01:31:49]} {[%emt 00:00:04]} dxe4 {[%clk
01:31:46]} {[%emt 00:00:06]} 4. Nxe4 {[%clk 01:32:15]} {[%emt 00:00:04]} Nf6
{[%clk 01:32:10]} {[%emt 00:00:06]} 5. Nxf6+ {[%clk 01:32:41]} {[%emt
00:00:04]} exf6 {[%clk 01:32:35]} {[%emt 00:00:06]} 6. c3 {[%clk 01:33:04]}
{[%emt 00:00:07]} Bd6 {[%clk 01:33:01]} {[%emt 00:00:04]} 7. Bd3 {[%clk
01:33:26]} {[%emt 00:00:07]} O-O {[%clk 01:33:25]} {[%emt 00:00:06]} 8. Ne2
{[%clk 01:33:51]} {[%emt 00:00:06]} Re8 {[%clk 01:33:50]} {[%emt 00:00:05]} 9.
O-O {[%clk 01:33:51]} {[%emt 00:00:29]} g6 {[%clk 01:27:16]} {[%emt 00:07:04]}
10. b3 {[%clk 01:26:12]} {[%emt 00:08:09]} Nd7 {[%clk 01:23:50]} {[%emt
00:03:56]} 11. Bf4 {[%clk 01:22:24]} {[%emt 00:04:18]} Nf8 {[%clk 01:16:53]}
{[%emt 00:07:27]} 12. Bxd6 {[%clk 01:21:44]} {[%emt 00:01:10]} Qxd6 {[%clk
01:17:17]} {[%emt 00:00:06]} 13. Qd2 {[%clk 01:18:26]} {[%emt 00:03:49]} Be6
{[%clk 01:13:13]} {[%emt 00:04:35]} 14. Rfe1 {[%clk 01:15:24]} {[%emt
00:03:31]} f5 {[%clk 01:12:00]} {[%emt 00:01:43]} 15. Nf4 {[%clk 00:54:49]}
{[%emt 00:21:05]} Rad8 {[%clk 01:07:20]} {[%emt 00:05:10]} 16. Rad1 {[%clk
00:51:03]} {[%emt 00:04:17]} Re7 {[%clk 01:01:53]} {[%emt 00:05:57]} 17. Bf1
{[%clk 00:44:25]} {[%emt 00:07:08]} Red7 {[%clk 00:54:03]} {[%emt 00:08:20]} 18.
Qe3 {[%clk 00:40:46]} {[%emt 00:04:09]} b6 {[%clk 00:47:33]} {[%emt 00:07:00]}
19. g3 {[%clk 00:38:21]} {[%emt 00:02:55]} Qc7 {[%clk 00:41:11]} {[%emt
00:06:52]} 20. Bg2 {[%clk 00:37:25]} {[%emt 00:01:26]} Bd5 {[%clk 00:38:43]}
{[%emt 00:02:59]} 21. c4 {[%clk 00:32:42]} {[%emt 00:05:14]} Bxg2 {[%clk
00:38:37]} {[%emt 00:00:35]} 22. Kxg2 {[%clk 00:32:58]} {[%emt 00:00:13]} h5
{[%clk 00:34:06]} {[%emt 00:05:02]} 23. d5 {[%clk 00:32:05]} {[%emt 00:01:24]}
Nh7 {[%clk 00:33:13]} {[%emt 00:01:22]} 24. Rc1 {[%clk 00:23:03]} {[%emt
00:09:33]} Qd6 {[%clk 00:27:32]} {[%emt 00:06:10]} 25. Qe5 {[%clk 00:20:19]}
{[%emt 00:03:14]} Qxe5 {[%clk 00:24:30]} {[%emt 00:03:32]} 26. Rxe5 {[%clk
00:20:39]} {[%emt 00:00:10]} c5 {[%clk 00:22:11]} {[%emt 00:02:50]} 27. Rce1
{[%clk 00:19:30]} {[%emt 00:01:39]} Kf8 {[%clk 00:22:19]} {[%emt 00:00:22]} 28.
R5e2 {[%clk 00:18:17]} {[%emt 00:01:43]} Nf6 {[%clk 00:22:21]} {[%emt
00:00:28]} 29. Nd3 {[%clk 00:16:12]} {[%emt 00:02:36]} Ne4 {[%clk 00:19:50]}
{[%emt 00:03:00]} 30. Ne5 {[%clk 00:15:44]} {[%emt 00:00:58]} Rc7 {[%clk
00:19:36]} {[%emt 00:00:44]} 31. f3 {[%clk 00:15:35]} {[%emt 00:00:39]} Nd6
{[%clk 00:19:46]} {[%emt 00:00:20]} 32. Nc6 {[%clk 00:15:27]} {[%emt 00:00:38]}
Re8 {[%clk 00:17:35]} {[%emt 00:02:41]} 33. Rxe8+ {[%clk 00:13:37]} {[%emt
00:02:21]} Nxe8 {[%clk 00:17:56]} {[%emt 00:00:10]} 34. Kf2 {[%clk 00:13:07]}
{[%emt 00:00:59]} Nd6 {[%clk 00:14:39]} {[%emt 00:03:47]} 35. Ke3 {[%clk
00:13:00]} {[%emt 00:00:37]} a5 {[%clk 00:10:29]} {[%emt 00:04:40]} 36. Kd3
{[%clk 00:11:46]} {[%emt 00:01:43]} Nc8 {[%clk 00:07:52]} {[%emt 00:03:07]} 37.
Kc3 {[%clk 00:10:42]} {[%emt 00:01:34]} Na7 {[%clk 00:05:24]} {[%emt 00:02:58]}
38. Nxa7 {[%clk 00:09:55]} {[%emt 00:01:17]} Rxa7 {[%clk 00:05:50]} {[%emt
00:00:04]} 39. f4 {[%clk 00:08:30]} {[%emt 00:01:54]} Ra8 {[%clk 00:03:10]}
{[%emt 00:03:10]} 40. Re2 {[%clk 00:07:19]} {[%emt 00:01:41]} Re8 {[%clk
00:02:01]} {[%emt 00:01:40]} 41. Rxe8+ {[%clk 00:07:03]} {[%emt 00:00:46]} Kxe8
{[%clk 00:01:26]} {[%emt 00:01:05]} 42. Kb2 {[%clk 00:07:19]} {[%emt 00:00:13]}
Kd7 {[%clk 00:00:56]} {[%emt 00:01:00]} 43. Ka3 {[%clk 00:07:42]} {[%emt
00:00:06]} Kc7 {[%clk 00:00:58]} {[%emt 00:00:28]} 44. Ka4 {[%clk 00:08:08]}
{[%emt 00:00:05]} Kb7 {[%clk 00:01:25]} {[%emt 00:00:03]} 45. Kb5 {[%clk
00:08:34]} {[%emt 00:00:03]} f6 {[%clk 00:01:52]} {[%emt 00:00:03]} 46. h4
{[%clk 00:08:37]} {[%emt 00:00:27]} Kc7 {[%clk 00:02:16]} {[%emt 00:00:06]} 47.
d6+ {[%clk 00:08:59]} {[%emt 00:00:08]} 1-0